bitfinex-derivatives/quotes_SOLF0:USTF0_20260305
["timestamp","ask_amount","ask_price","bid_price","bid_amount"]
[1772730249300,9.45588629,89.37,89.261,20.16]
[1772730249603,9.45588629,89.37,89.28,9.45588629]
[1772730250001,9.45588629,89.37,89.26,9.45588629]
[1772730250198,9.45588629,89.35,89.26,9.45588629]
[1772730250499,9.18364612,89.386,89.26,9.45588629]
[1772730250705,9.45588629,89.37,89.28,9.45588629]
[1772730251403,9.45588629,89.4,89.23,62.0]
[1772730251404,9.45588629,89.35,89.26,9.45588629]
[1772730251805,10.072,89.329,89.281,10.077]
[1772730252502,10.071,89.343,89.294,10.076]
[1772730252805,10.071,89.343,89.24,20.165]
[1772730252806,9.19914036,89.369,89.28,9.45588629]
[1772730253105,8.23465561,89.369,89.26,9.45588629]
[1772730253303,9.45588629,89.37,89.26,9.45588629]
[1772730253699,17.43379597,89.386,89.26,9.45588629]
[1772730253906,10.07,89.344,89.28,9.45588629]
[1772730254705,9.45588629,89.37,89.28,9.45588629]
[1772730255707,9.45588629,89.35,89.26,9.45588629]
[1772730256604,9.45588629,89.37,89.26,9.45588629]
[1772730257207,9.45588629,89.35,89.25,9.45588629]
[1772730257404,9.45588629,89.35,89.246,20.163]
[1772730257405,9.45588629,89.35,89.27,9.45588629]
[1772730258004,20.136,89.367,89.293,10.076]
[1772730258200,9.45588629,89.37,89.27,9.45588629]
[1772730258706,10.07,89.345,89.3,10.075]
[1772730259310,10.07,89.345,89.27,9.45588629]
[1772730259311,20.132,89.388,89.29,9.45588629]
[1772730259509,9.45588629,89.38,89.273,20.157]
[1772730259805,20.133,89.379,89.27,9.45588629]
[1772730260010,17.68352245,89.378,89.27,9.45588629]
[1772730260606,9.45588629,89.36,89.292,10.076]
[1772730260808,9.45588629,89.39,89.29,9.45588629]
[1772730261009,9.20204644,89.411,89.31,9.45588629]
[1772730261205,8.47892683,89.419,89.31,9.45588629]
[1772730261406,9.45588629,89.42,89.31,9.45588629]
[1772730261606,10.067,89.378,89.336,10.071]
[1772730261802,17.67973492,89.413,89.31,9.45588629]
[1772730262109,10.067,89.379,89.31,9.45588629]
[1772730262610,8.47892683,89.412,89.31,9.45588629]
[1772730262814,10.066,89.379,89.34,10.071]
[1772730263406,10.066,89.379,89.332,10.072]
[1772730263605,10.067,89.372,89.31,9.45588629]
[1772730264311,8.47892683,89.399,89.321,10.073]
[1772730264508,9.45588629,89.4,89.321,10.073]
[1772730264901,9.45588629,89.4,89.327,10.072]
[1772730265100,9.45588629,89.4,89.31,9.45588629]
[1772730265304,8.47892683,89.409,89.31,9.45588629]
[1772730265505,8.47892683,89.419,89.344,10.07]
[1772730265807,9.45588629,89.42,89.344,10.07]
[1772730266005,10.064,89.398,89.32,9.45588629]
[1772730266208,8.47892683,89.419,89.32,9.45588629]
[1772730266504,8.47892683,89.419,89.34,9.43680209]
[1772730266710,8.47892683,89.422,89.34,9.43680209]
[1772730266912,17.68258367,89.429,89.35,10.07]
[1772730267111,8.48225625,89.428,89.35,10.07]
[1772730267306,17.68591309,89.429,89.35,10.07]
[1772730267512,10.065,89.389,89.343,10.07]
[1772730267712,8.48225625,89.428,89.34,9.43680209]
[1772730267916,17.68591309,89.429,89.34,9.43680209]
[1772730268114,10.065,89.395,89.347,10.07]
[1772730268315,20.123,89.427,89.34,9.43680209]
[1772730268611,17.68591309,89.426,89.34,19.50780209]
[1772730268912,17.68591309,89.426,89.262,26.39804459]
[1772730268913,9.43680209,89.4,89.29,9.43680209]
[1772730269914,10.07,89.351,89.29,9.43680209]
[1772730271008,10.069,89.359,89.29,9.43680209]
[1772730271211,8.48225625,89.393,89.29,9.43680209]
[1772730271509,17.68591309,89.394,89.29,9.43680209]
[1772730271717,9.43680209,89.38,89.29,9.43680209]
[1772730272406,10.069,89.355,89.31,10.074]
[1772730273206,10.07,89.348,89.31,10.074]
[1772730273812,9.43680209,89.36,89.27,9.43680209]
[1772730274213,9.43680209,89.36,89.287,10.077]
[1772730274415,9.43680209,89.36,89.27,9.43680209]
[1772730274810,8.48225625,89.37,89.27,9.43680209]
[1772730275011,17.71909965,89.371,89.27,9.43680209]
[1772730275210,10.071,89.341,89.27,9.43680209]
[1772730275620,10.072,89.328,89.253,20.162]
[1772730275820,9.43680209,89.36,89.26,9.43680209]
[1772730277520,10.072,89.329,89.287,10.077]
[1772730277721,20.138,89.357,89.26,9.43680209]
[1772730277921,17.72749157,89.356,89.26,9.43680209]
[1772730278221,8.48225625,89.355,89.26,9.43680209]
[1772730278422,17.72749157,89.356,89.26,9.43680209]
[1772730279020,8.48225625,89.355,89.26,9.43680209]
[1772730279220,17.72749157,89.359,89.26,9.43680209]
[1772730279619,17.72484622,89.359,89.26,9.43680209]
[1772730280124,8.48225625,89.359,89.26,9.43680209]
[1772730280326,10.071,89.34,89.299,10.075]
[1772730280830,10.07,89.349,89.28,9.43680209]
[1772730281122,9.43680209,89.37,89.28,9.43680209]
[1772730282522,10.07,89.351,89.309,10.074]
[1772730284127,9.43680209,89.39,89.282,20.155]
[1772730284423,8.50003795,89.389,89.282,20.155]
[1772730284631,8.50003795,89.388,89.282,20.155]
[1772730284824,8.50003795,89.389,89.282,20.155]
[1772730285035,8.50003795,89.388,89.319,10.073]
[1772730285225,8.50003795,89.389,89.319,10.073]
[1772730285425,8.50003795,89.388,89.319,10.073]
[1772730285625,8.50003795,89.389,89.283,20.155]
[1772730285926,8.50003795,89.388,89.283,20.155]
[1772730286125,8.50003795,89.389,89.283,20.155]
[1772730286328,8.50003795,89.388,89.283,20.155]
[1772730286627,10.069,89.356,89.318,10.073]
[1772730287428,10.068,89.366,89.318,10.073]
[1772730287830,20.127,89.406,89.3,9.43680209]
[1772730288127,10.067,89.379,89.3,9.43680209]
[1772730288327,10.067,89.379,89.331,10.072]
[1772730288520,9.43680209,89.41,89.32,9.43680209]
[1772730288521,8.50243668,89.403,89.32,9.43680209]
[1772730288719,8.50243668,89.409,89.32,9.43680209]
[1772730288920,8.50243668,89.408,89.338,10.071]
[1772730289227,8.50243668,89.409,89.32,9.43680209]
[1772730289622,9.43680209,89.41,89.32,9.43680209]
[1772730290427,8.50243668,89.419,89.32,9.43680209]
[1772730290630,9.23739745,89.422,89.32,9.43680209]
[1772730290631,8.50243668,89.421,89.32,9.43680209]
[1772730290827,8.50243668,89.42,89.32,9.43680209]
[1772730291132,8.50243668,89.426,89.32,9.43680209]
[1772730291330,9.23739745,89.427,89.34,9.43680209]
[1772730291331,8.50243668,89.427,89.34,9.43680209]
[1772730291530,8.50243668,89.429,89.34,9.43680209]
[1772730292230,9.43680209,89.43,89.34,9.43680209]
[1772730293325,10.064,89.399,89.358,10.069]
[1772730293827,20.122,89.428,89.34,9.43680209]
[1772730294028,8.50243668,89.427,89.34,9.43680209]
[1772730294531,8.50243668,89.427,89.258,156.808]
[1772730294532,9.43680209,89.39,89.28,9.43680209]
[1772730295234,10.069,89.357,89.31,10.074]
[1772730295934,10.07,89.349,89.303,10.075]
[1772730296532,10.069,89.357,89.31,10.074]
[1772730296732,8.50243668,89.387,89.31,10.074]
[1772730296935,9.43680209,89.37,89.28,9.43680209]
[1772730297433,10.07,89.345,89.301,10.075]
[1772730298739,10.071,89.339,89.294,10.076]
[1772730300336,9.43680209,89.35,89.26,9.43680209]
[1772730300842,10.072,89.334,89.26,9.43680209]
[1772730301241,13.51577998,89.392,89.26,9.43680209]
[1772730301242,8.4966776,89.365,89.28,9.43680209]
[1772730301539,10.07,89.35,89.3,10.075]
[1772730301940,8.4966776,89.383,89.3,9.43680209]
[1772730302240,8.4966776,89.384,89.3,9.43680209]
[1772730302438,20.127,89.41,89.3,9.43680209]
[1772730302439,8.4966776,89.389,89.3,9.43680209]
[1772730302637,10.069,89.36,89.313,10.074]
[1772730303341,10.068,89.369,89.32,10.073]
[1772730303542,8.49579805,89.389,89.3,9.43680209]
[1772730303740,9.23648867,89.406,89.3,9.43680209]
[1772730303940,10.067,89.37,89.318,10.073]
[1772730305045,9.25140548,89.409,89.318,10.073]
[1772730305245,8.49556924,89.408,89.318,10.073]
[1772730305444,8.49556924,89.407,89.318,10.073]
[1772730305744,8.49556924,89.406,89.318,10.073]
[1772730306039,8.49556924,89.405,89.326,10.072]
[1772730306241,8.49556924,89.404,89.3,9.43680209]
[1772730306542,8.49556924,89.403,89.3,9.43680209]
[1772730306743,8.49556924,89.402,89.3,9.43680209]
[1772730306940,8.49556924,89.401,89.3,9.43680209]
[1772730307243,9.43680209,89.38,89.28,9.43680209]
[1772730307440,9.43680209,89.38,89.257,20.26928536]
[1772730307441,9.43680209,89.36,89.26,9.43680209]
[1772730308037,10.072,89.331,89.281,10.077]
[1772730308238,9.43680209,89.32,89.22,9.43680209]
[1772730308639,10.076,89.296,89.229,10.083]
[1772730308836,10.076,89.296,89.22,9.43680209]
[1772730309240,8.49954461,89.318,89.22,9.43680209]
[1772730309546,8.49954461,89.319,89.22,9.43680209]
[1772730309743,9.43680209,89.32,89.22,9.43680209]
[1772730310942,8.49954461,89.322,89.22,9.43680209]
[1772730311146,9.43680209,89.32,89.22,9.43680209]
[1772730311537,10.075,89.301,89.241,10.082]
[1772730311945,8.49954461,89.319,89.22,9.43680209]
[1772730312144,10.077,89.285,89.23,10.083]
[1772730312541,9.43680209,89.28,89.2,9.43680209]
[1772730312747,9.43680209,89.28,89.22,10.084]
[1772730313253,9.43680209,89.3,89.2,9.43680209]
[1772730313750,10.078,89.279,89.229,10.083]
[1772730314260,9.43680209,89.28,89.19,9.43680209]
[1772730315252,9.43680209,89.28,89.22,10.084]
[1772730315449,9.43680209,89.26,89.15,9.43680209]
[1772730315646,8.46964908,89.279,89.17,9.43680209]
[1772730315849,9.43680209,89.28,89.2,10.087]
[1772730316048,9.43680209,89.28,89.19,9.43680209]
[1772730316351,9.43680209,89.28,89.17,9.43680209]
[1772730316945,9.43680209,89.25,89.15,9.43680209]
[1772730317253,9.43680209,89.28,89.17,9.43680209]
[1772730317655,10.08,89.256,89.192,10.087]
[1772730319054,10.081,89.247,89.182,10.089]
[1772730319548,9.43680209,89.26,89.15,9.43680209]
[1772730319753,9.43680209,89.24,89.15,9.43680209]
[1772730320454,9.43680209,89.24,89.11,20.194]
[1772730320455,9.43680209,89.24,89.13,9.43680209]
[1772730320748,9.43680209,89.24,89.106,157.076]
[1772730320749,10.083,89.23,89.177,10.089]
[1772730320955,9.43680209,89.24,89.177,10.089]
[1772730321150,9.43680209,89.26,89.17,9.43680209]
[1772730321353,179.14,89.332,89.17,9.43680209]
[1772730321354,10.08,89.263,89.19,9.43680209]
[1772730321652,9.43680209,89.28,89.17,9.43680209]
[1772730321852,10.079,89.272,89.2,9.43680209]
[1772730322457,10.079,89.272,89.209,10.086]
[1772730322646,10.079,89.272,89.16,20.183]
[1772730322853,9.43680209,89.27,89.17,9.43680209]
[1772730323149,9.43680209,89.27,89.19,9.43680209]
[1772730323552,9.43680209,89.27,89.212,10.085]
[1772730323951,179.14,89.332,89.19,9.43680209]
[1772730323952,9.43680209,89.29,89.19,9.43680209]
[1772730324153,9.43680209,89.29,89.214,10.085]
[1772730325354,10.079,89.269,89.214,10.085]
[1772730325856,9.43680209,89.29,89.222,10.084]
[1772730326056,10.078,89.278,89.19,9.43680209]
[1772730326260,9.43680209,89.29,89.21,9.43680209]
[1772730326550,9.43680209,89.31,89.21,9.43680209]
[1772730327053,10.076,89.297,89.24,10.082]
[1772730327248,9.43680209,89.31,89.21,9.43680209]
[1772730327451,9.43680209,89.29,89.21,9.43680209]
[1772730327652,10.079,89.271,89.211,10.085]
[1772730327952,9.43680209,89.29,89.18,20.178]
[1772730328146,10.076,89.293,89.238,10.082]
[1772730328347,9.43680209,89.31,89.238,10.082]
[1772730328550,9.46191354,89.31,89.238,10.082]
[1772730328857,9.46191354,89.31,89.2,9.46191354]
[1772730329656,9.46191354,89.29,89.2,9.46191354]
[1772730329954,9.46191354,89.31,89.2,9.46191354]
[1772730331155,20.147,89.321,89.2,9.46191354]
[1772730331355,10.078,89.281,89.231,10.083]
[1772730332851,10.079,89.272,89.222,10.084]
[1772730333654,3.75263389,89.289,89.218,3.96378034]
[1772730334159,3.75263389,89.289,89.181,20.178]
[1772730334160,3.75263389,89.289,89.221,3.96378034]
[1772730334755,10.077,89.288,89.241,10.082]
[1772730334961,10.077,89.288,89.221,3.96378034]
[1772730335357,10.078,89.28,89.221,3.96378034]
[1772730335660,3.75263389,89.289,89.221,3.96378034]
[1772730337459,3.75263389,89.289,89.202,3.96378034]
[1772730338465,10.078,89.278,89.224,10.084]
[1772730338964,3.75263389,89.289,89.224,3.96378034]
[1772730340366,10.077,89.282,89.24,10.082]
[1772730340763,3.75263389,89.289,89.24,10.082]
[1772730341266,10.075,89.301,89.24,3.96378034]
[1772730341668,10.075,89.301,89.248,10.081]
[1772730342764,3.75263389,89.309,89.259,10.08]
[1772730343964,10.075,89.301,89.25,10.081]
[1772730344363,3.75263389,89.309,89.222,3.96378034]
[1772730344562,3.75263389,89.299,89.184,20.177]
[1772730344769,3.75263389,89.279,89.204,3.96378034]
[1772730345566,3.75263389,89.279,89.22,10.084]
[1772730345864,3.75263389,89.279,89.204,3.96378034]
[1772730346571,10.08,89.262,89.218,10.085]
[1772730346769,3.75263389,89.279,89.204,3.96378034]
[1772730347267,10.079,89.268,89.219,10.084]
[1772730347769,10.08,89.26,89.212,10.085]
[1772730347966,3.75263389,89.279,89.204,3.96378034]
[1772730348170,3.75263389,89.269,89.204,3.96378034]
[1772730348468,10.082,89.245,89.204,3.96378034]
[1772730348769,10.082,89.245,89.171,3.96378034]
[1772730349066,3.75263389,89.269,89.191,3.96378034]
[1772730349670,10.08,89.259,89.213,10.085]
[1772730350268,10.08,89.259,89.19,9.46191354]
[1772730350269,10.079,89.267,89.22,10.084]
[1772730350467,3.75263389,89.269,89.209,3.96378034]
[1772730351163,10.08,89.26,89.22,10.084]
[1772730351367,3.75263389,89.269,89.22,10.084]
[1772730352370,10.079,89.267,89.22,10.084]
[1772730352869,3.75263389,89.269,89.22,10.084]
[1772730353165,10.079,89.268,89.22,10.084]
[1772730353761,10.078,89.276,89.226,10.084]
[1772730354072,10.078,89.276,89.184,20.177]
[1772730354073,10.078,89.276,89.211,3.96378034]
[1772730354672,10.077,89.283,89.211,3.96378034]
[1772730355272,10.078,89.277,89.211,3.96378034]
[1772730356272,8.60093782,89.285,89.211,3.96378034]
[1772730356462,3.75263389,89.307,89.231,3.96378034]
[1772730356667,8.60093782,89.306,89.231,3.96378034]
[1772730356870,8.60093782,89.305,89.231,3.96378034]
[1772730357066,8.60093782,89.304,89.231,3.96378034]
[1772730357262,8.60093782,89.306,89.231,3.96378034]
[1772730357563,8.60093782,89.305,89.231,3.96378034]
[1772730357762,8.60093782,89.304,89.231,3.96378034]
[1772730357962,8.60093782,89.306,89.231,3.96378034]
[1772730358168,8.60093782,89.305,89.231,3.96378034]
[1772730358466,10.076,89.296,89.231,3.96378034]
[1772730359371,10.076,89.296,89.25,10.081]
[1772730359672,10.075,89.299,89.231,3.96378034]
[1772730359874,10.075,89.299,89.26,10.08]
[1772730360271,10.076,89.292,89.247,3.96378034]
[1772730360476,3.75412062,89.305,89.262,10.08]
[1772730360773,3.75412062,89.305,89.247,3.96378034]
[1772730361073,20.2792744,89.352,89.23,9.46191354]
[1772730361074,12.35103764,89.325,89.251,3.92651411]
[1772730361270,3.75412062,89.325,89.251,3.92651411]
[1772730361469,3.75412062,89.325,89.27,3.92651411]
[1772730362873,10.072,89.332,89.276,3.92651411]
[1772730363776,10.071,89.342,89.282,10.077]
[1772730364067,3.75412062,89.348,89.276,3.92651411]
[1772730364269,9.46191354,89.36,89.276,3.92651411]
[1772730364472,3.75412062,89.359,89.276,3.92651411]
[1772730365073,3.75412062,89.359,89.294,3.92651411]
[1772730365874,10.071,89.343,89.295,10.076]
[1772730366576,3.75412062,89.342,89.276,3.92651411]
[1772730367071,3.75412062,89.342,89.282,3.92651411]
[1772730367775,3.75412062,89.332,89.265,3.92651411]
[1772730368976,3.75412062,89.332,89.278,3.92651411]
[1772730369274,9.46191354,89.36,89.278,3.92651411]
[1772730369275,3.75412062,89.359,89.278,3.92651411]
[1772730369872,3.75412062,89.338,89.283,10.077]
[1772730370275,3.75412062,89.316,89.263,10.08]
[1772730371476,10.074,89.314,89.263,10.08]
[1772730371868,3.75412062,89.316,89.261,3.92651411]
[1772730372071,3.75412062,89.299,89.211,3.92651411]
[1772730372274,3.75412062,89.279,89.211,3.92651411]
[1772730373379,10.08,89.262,89.212,10.085]
[1772730373574,3.75412062,89.279,89.191,3.92651411]
[1772730374279,10.08,89.256,89.201,10.087]
[1772730374477,3.75412062,89.262,89.191,3.92651411]
[1772730375378,10.08,89.261,89.211,10.085]
[1772730377277,9.46191354,89.28,89.208,3.92651411]
[1772730377278,3.75412062,89.279,89.208,3.92651411]
[1772730377777,3.75412062,89.279,89.191,3.92651411]
[1772730378174,10.081,89.254,89.195,10.087]
[1772730378481,3.75412062,89.261,89.195,10.087]
[1772730379477,10.082,89.246,89.195,10.087]
[1772730379872,10.082,89.246,89.191,3.92651411]
[1772730380272,10.082,89.239,89.191,3.92651411]
[1772730381385,10.082,89.239,89.191,14.01451411]
[1772730381577,10.081,89.247,89.191,14.01451411]
[1772730382075,10.082,89.239,89.191,14.01451411]
[1772730382671,3.75412062,89.239,89.173,3.92651411]
[1772730384281,13.83812062,89.223,89.173,3.92651411]
[1772730385179,3.75412062,89.223,89.157,10.091]
[1772730385384,3.75412062,89.223,89.159,433.41989689]
[1772730385579,3.75412062,89.223,89.16,3.92651411]
[1772730385782,3.75412062,89.239,89.161,3.92651411]
[1772730386585,9.46191354,89.26,89.161,3.92651411]
[1772730386888,9.46191354,89.26,89.182,3.92651411]
[1772730388488,10.082,89.246,89.198,10.087]
[1772730388688,1.98569942,89.299,89.211,3.67577573]
[1772730388983,10.077,89.285,89.231,3.67577573]
[1772730389785,10.075,89.307,89.251,3.67577573]
[1772730389983,1.98569942,89.319,89.251,3.67577573]
[1772730390384,1.98569942,89.319,89.231,3.65295381]
[1772730391088,1.94840843,89.302,89.239,10.082]
[1772730391389,1.94840843,89.302,89.231,3.65295381]
[1772730391791,1.94840843,89.299,89.213,3.65295381]
[1772730392293,1.94999646,89.282,89.215,10.085]
[1772730393089,10.079,89.267,89.215,13.73795381]
[1772730393583,10.079,89.267,89.222,10.084]
[1772730394392,10.079,89.267,89.216,3.65295381]
[1772730395392,10.08,89.259,89.216,3.65295381]
[1772730395788,1.94999646,89.282,89.216,3.65295381]
[1772730395989,10.079,89.267,89.217,3.65295381]
[1772730396688,10.079,89.267,89.16,9.47130833]
[1772730396689,9.47130833,89.3,89.225,3.65295381]
[1772730396899,9.47130833,89.3,89.192,20.176]
[1772730396900,1.96215047,89.302,89.231,3.65295381]
[1772730398397,10.077,89.288,89.235,3.65295381]
[1772730398698,1.96215047,89.302,89.235,3.65295381]
[1772730398997,10.077,89.289,89.247,10.081]
[1772730399498,10.077,89.289,89.235,3.65295381]
[1772730399694,1.96215047,89.302,89.235,3.65295381]
[1772730400096,1.95370994,89.299,89.235,3.65295381]
[1772730400692,1.95370994,89.275,89.217,3.65295381]
[1772730402096,10.08,89.258,89.217,3.65295381]
[1772730402491,1.95370994,89.275,89.217,3.65295381]
[1772730402691,10.08,89.26,89.217,3.65295381]
[1772730403094,1.93907721,89.259,89.187,3.65295381]
[1772730403398,1.93907721,89.239,89.152,3.65295381]
[1772730403998,1.93907721,89.201,89.129,3.65295381]
[1772730404193,1.8357839,89.199,89.129,3.65295381]
[1772730404989,9.47130833,89.18,89.11,3.65295381]
[1772730405194,10.09,89.171,89.111,10.097]
[1772730405891,10.091,89.162,89.11,3.65295381]
[1772730406197,1.8357839,89.171,89.091,3.65295381]
[1772730406396,1.45384273,89.159,89.074,3.65295381]
[1772730406802,1.45384273,89.142,89.075,10.101]
[1772730407404,10.095,89.129,89.074,3.65295381]
[1772730408503,1.39864232,89.128,89.065,10.102]
[1772730408706,1.39864232,89.126,89.065,10.102]
[1772730409300,1.39864232,89.126,89.071,10.101]
[1772730409502,1.39864232,89.126,89.066,3.65295381]
[1772730409906,1.39864232,89.126,89.067,10.102]
[1772730410206,1.39864232,89.126,89.066,3.65295381]
[1772730411107,1.42484713,89.124,89.061,428.34497495]
[1772730412404,10.096,89.122,89.061,428.34497495]
[1772730412903,1.48381042,89.159,89.064,3.65295381]
[1772730413900,10.094,89.135,89.067,3.65295381]
[1772730414105,1.48381042,89.134,89.067,3.65295381]
[1772730415406,1.48381042,89.134,89.061,428.34497495]
[1772730415407,1.49027665,89.153,89.081,3.65295381]
[1772730415797,156.906,89.203,89.066,10.102]
[1772730415798,1.49027665,89.131,89.066,10.102]
[1772730416099,1.49027665,89.131,89.067,3.65295381]
[1772730416906,1.49027665,89.131,89.071,3.65295381]
[1772730418102,1.47832595,89.126,89.045,3.65295381]
[1772730420005,1.49259379,89.108,89.046,10.104]
[1772730420408,1.49259379,89.108,89.03,9.47130833]
[1772730420613,10.1,89.084,89.027,3.95946949]
[1772730420812,1.48517604,89.083,89.01,3.95946949]
[1772730421110,1.48517604,89.083,88.981,3.95946949]
[1772730421507,1.48517604,89.069,88.961,3.95946949]
[1772730421703,1.48517604,89.041,88.961,3.95946949]
[1772730421907,1.48517604,89.041,88.941,3.95946949]
[1772730422913,20.201,89.082,88.941,3.95946949]
[1772730422914,1.43944567,89.016,88.941,3.95946949]
[1772730423404,1.43944567,89.009,88.922,3.95946949]
[1772730423609,1.43944567,89.009,88.927,3.95946949]
[1772730424109,1.43944567,89.035,88.96,3.95946949]
[1772730424807,1.54282703,89.052,88.971,3.95946949]
[1772730425209,10.105,89.042,88.974,10.112]
[1772730425419,1.54282703,89.052,88.975,3.95946949]
[1772730426006,10.104,89.049,88.981,10.111]
[1772730426206,11.6267599,89.049,88.981,10.111]
[1772730426915,1.5227599,89.038,88.975,3.95946949]
[1772730427515,10.106,89.027,88.975,3.95946949]
[1772730427717,10.106,89.027,88.963,10.114]
[1772730428205,9.47130833,89.06,88.955,3.95946949]
[1772730428206,10.107,89.025,88.955,3.95946949]
[1772730428814,10.107,89.025,88.966,3.95946949]
[1772730429715,10.108,89.016,88.951,3.95946949]
[1772730431212,10.108,89.016,88.952,10.115]
[1772730431510,1.51967817,89.026,88.952,10.115]
[1772730431511,1.51967817,89.026,88.952,3.95946949]
[1772730431715,10.11,88.998,88.952,3.95946949]
[1772730431916,1.51967817,89.026,88.952,3.95946949]
[1772730432113,9.47130833,89.04,88.925,3.95946949]
[1772730432114,1.5082276,89.005,88.925,3.95946949]
[1772730432515,1.5082276,89.005,88.93,3.95946949]
[1772730433118,10.11,88.993,88.93,3.95946949]
[1772730433318,1.5082276,89.005,88.92,9.47130833]
[1772730433718,1.5082276,89.005,88.921,3.95946949]
[1772730433918,1.5082276,89.005,88.932,3.95946949]
[1772730434122,10.11,88.992,88.932,3.95946949]
[1772730435623,10.111,88.983,88.932,3.95946949]
[1772730435822,1.5082276,89.005,88.932,3.95946949]
[1772730436520,10.112,88.974,88.92,9.47130833]
[1772730436716,1.50430253,88.986,88.914,3.95946949]
[1772730437022,1.50430253,88.986,88.903,10.12]
[1772730437819,1.50430253,88.986,88.9,9.47130833]
[1772730437820,10.114,88.956,88.9,9.47130833]
[1772730438218,10.114,88.956,88.896,3.95946949]
[1772730439127,10.115,88.948,88.896,3.95946949]
[1772730439720,1.51752646,88.956,88.896,3.95946949]
[1772730439916,20.216,89.013,88.896,3.95946949]
[1772730439917,1.51752646,88.979,88.896,3.95946949]
[1772730440122,1.51752646,88.979,88.911,3.95946949]
[1772730440724,1.5167383,88.999,88.915,3.95946949]
[1772730441427,10.112,88.975,88.915,3.95946949]
[1772730442127,10.111,88.984,88.917,3.95946949]
[1772730442325,1.5167383,88.999,88.931,3.95946949]
[1772730442725,10.11,88.994,88.933,14.07646949]
[1772730443025,10.11,88.994,88.934,3.95946949]
[1772730443225,10.11,88.994,88.872,157.489]
[1772730443226,1.71216251,88.986,88.914,3.95946949]
[1772730443426,1.71216251,88.959,88.864,3.95946949]
[1772730443632,1.71216251,88.939,88.864,3.95946949]
[1772730443826,10.118,88.928,88.866,3.95946949]
[1772730444133,1.71216251,88.939,88.866,3.95946949]
[1772730444334,10.116,88.938,88.878,10.123]
[1772730445033,10.117,88.929,88.869,14.08346949]
[1772730445432,1.71216251,88.939,88.85,3.95946949]
[1772730445727,1.71216251,88.939,88.859,3.95946949]
[1772730446128,1.79974982,88.959,88.879,10.123]
[1772730446332,1.78095103,88.939,88.861,3.95946949]
[1772730447032,9.47130833,88.92,88.835,3.95946949]
[1772730447232,9.47130833,88.94,88.841,3.68598721]
[1772730447636,10.118,88.926,88.866,3.68598721]
[1772730448333,10.117,88.935,88.871,13.80998721]
[1772730448737,10.117,88.935,88.872,3.68598721]
[1772730449031,1.77576634,88.95,88.872,3.68598721]
[1772730449233,10.118,88.926,88.872,3.68598721]
[1772730449636,1.77812964,88.932,88.86,10.125]
[1772730449837,1.77812964,88.919,88.853,3.68598721]
[1772730450434,10.121,88.901,88.853,3.68598721]
[1772730450633,1.77812964,88.919,88.821,3.94710784]
[1772730450840,2.07296856,88.879,88.781,3.94710784]
[1772730451233,10.125,88.865,88.794,3.94710784]
[1772730451632,2.07296856,88.864,88.794,3.94710784]
[1772730452035,10.124,88.875,88.805,3.94710784]
[1772730452236,2.05939922,88.877,88.805,3.94710784]
[1772730452431,2.05939922,88.877,88.745,20.277]
[1772730452432,9.54702567,88.83,88.754,3.94710784]
[1772730452632,2.05939922,88.829,88.754,3.94710784]
[1772730453744,2.05939922,88.851,88.771,3.94710784]
[1772730453938,2.05939922,88.839,88.771,3.94710784]
[1772730454342,2.11849569,88.829,88.751,3.94710784]
[1772730454631,2.11849569,88.829,88.72,16.7905902]
[1772730454632,2.11849569,88.859,88.761,3.94710784]
[1772730455143,10.129,88.825,88.761,3.94710784]
[1772730455939,2.11849569,88.819,88.731,3.94710784]
[1772730456537,10.132,88.803,88.733,3.94710784]
[1772730456733,2.11849569,88.819,88.733,3.94710784]
[1772730456935,2.16319296,88.799,88.733,3.94710784]
[1772730457741,9.54702567,88.82,88.733,3.94710784]
[1772730458041,10.132,88.804,88.735,3.94710784]
[1772730458437,2.16319296,88.819,88.737,3.94710784]
[1772730458438,10.13,88.817,88.737,3.94710784]
[1772730458638,2.16319296,88.819,88.737,3.94710784]
[1772730458945,10.13,88.818,88.751,3.94710784]
[1772730459143,2.21691017,88.817,88.721,3.94710784]
[1772730459341,2.21691017,88.839,88.741,3.94710784]